[Event "CZE-ch Youth B14 2022"]
[Site "Luhacovice"]
[Date "2022.03.14"]
[Round "3.5"]
[White "Zelba, Lukas"]
[Black "Kubin, Tomas Daniel"]
[Result "1-0"]
[ECO "A05"]
[WhiteElo "1945"]
[BlackElo "1666"]
[Annotator "NA"]
[PlyCount "87"]
[EventDate "2022.03.12"]
[EventType "swiss"]
[EventCountry "CZE"]
[SourceTitle "playchess.com"]
[Source "ChessBase"]
[SourceQuality "1"]
[TimeControl "40/5400+30:1800+30"]

1. Nf3 {[%emt 0:00:42]} Nf6 {[%emt 0:00:41]} 2. c4 {[%emt 0:00:14]} g6 {[%emt 0:01:05]} 3. g3 {[%emt 0:00:16]} Bg7 {[%emt 0:00:43]} 4. Bg2 {[%emt 0:00:26]} O-O {[%emt 0:00:48]} 5. O-O {[%emt 0:00:53]} c5 {[%emt 0:04:36]} 6. d3 {[%emt 0:04:26]} Nc6 {[%emt 0:02:31]} 7. Bd2 {[%emt 0:06:40]} d6 {[%emt 0:09:30]} 8. Bc3 {[%emt 0:01:34]} e6 {[%emt 0:02:27]} 9. Nbd2 {[%emt 0:04:06]} (9. a3 $11 {feels stronger.}) 9... Bd7 {[%emt 0:07:58]} 10. Rc1 {[%emt 0:10:58]} a5 {[%emt 0:08:10]} 11. a3 {[%emt 0:03:19]} a4 {[%emt 0:02:02]} 12. Ne4 {[%emt 0:00:28]} Nxe4 {[%emt 0:07:42]} 13. dxe4 {[%emt 0:00:13]} Qc7 {[%emt 0:02:28]} 14. Bxg7 {[%emt 0:06:05]} Kxg7 {[%emt 0:00:08]} 15. Rc3 {[%emt 0:00:59]} Rfd8 {[%emt 0:04:38]} 16. Nd2 {[%emt 0:05:19]} Ne7 {[%emt 0:03:14]} 17. Nb1 {[%emt 0:03:21]} Ra6 {[%emt 0:03:41]} 18. Rd3 {[%emt 0:01:02]} b5 {[%emt 0:04:40]} 19. e5 {[%emt 0:14:55]} Nc8 {[%emt 0:05:23]} 20. cxb5 {[%emt 0:05:55]} Bxb5 {[%emt 0:00:52]} 21. Rc3 {[%emt 0:01:22]} (21. exd6 $11 Nxd6 22. Rd2) 21... d5 {[%emt 0:01:58]} 22. Qc1 {[%emt 0:02:38]} Bxe2 {[%emt 0:07:53]} 23. Rxc5 {[%emt 0:00:34]} Qb8 {[%emt 0:00:33]} 24. Re1 {[%emt 0:02:39]} Bc4 $11 {[%emt 0:00:25]} 25. Bf1 {[%emt 0:02:16]} Nb6 {[%emt 0:02:34]} 26. Nd2 {[%emt 0:01:06]} Bxf1 {[%emt 0:01:00]} 27. Kxf1 {[%emt 0:00:26]} Nd7 {[%emt 0:00:59]} 28. Nf3 {[%emt 0:08:07]} Nxc5 {[%emt 0:01:46]} 29. Qxc5 {[%emt 0:00:10]} Qxb2 {[%emt 0:01:19]} 30. Qe7 {[%emt 0:00:32]} Qb5+ {[%emt 0:00:47]} 31. Kg2 {[%emt 0:00:09]} Qd7 {[%emt 0:00:41]} 32. Qf6+ {[%emt 0:00:27]} Kg8 {[%emt 0:00:12]} 33. Rb1 {[%emt 0:01:16]} Ra7 {[%emt 0:05:21]} 34. Rb4 {[%emt 0:04:56]} Qe7 {[%emt 0:03:02]} 35. Qf4 {[%emt 0:00:56]} Kg7 {[%emt 0:01:25]} 36. h4 {[%emt 0:03:01]} f6 {[%emt 0:01:33]} 37. Nd4 {[%emt 0:00:20]} Rc8 {[%emt 0:01:37]} 38. Rb6 {[%emt 0:00:43]} f5 {[%emt 0:01:43]} 39. Rxe6 {[%emt 0:01:07]} Qc5 {[%emt 0:00:58]} 40. Rf6 {[%emt 0:02:04]} Kg8 {[%emt 0:00:30]} 41. Ne6 {[%emt 0:14:45]} Qc4 {[%emt 0:08:48]} 42. Qh6 {[%emt 0:02:36]} Qe4+ {[%emt 0:01:08]} 43. Kh2 {[%emt 0:00:06]} Qxe5 {[%emt 0:01:40]} 44. Rf8+ {[%emt 0:00:14]} 1-0

[Event "CZE-ch Youth B14 2022"]
[Site "Luhacovice"]
[Date "2022.03.14"]
[Round "3.6"]
[White "Dusanek, Michal"]
[Black "Siles, Jan"]
[Result "1/2-1/2"]
[ECO "B38"]
[WhiteElo "1682"]
[BlackElo "1548"]
[Annotator "NA"]
[PlyCount "73"]
[EventDate "2022.03.12"]
[EventType "swiss"]
[EventCountry "CZE"]
[SourceTitle "playchess.com"]
[Source "ChessBase"]
[SourceQuality "1"]
[TimeControl "40/5400+30:1800+30"]

1. e4 {[%emt 0:00:07]} c5 {[%emt 0:00:14]} 2. Nf3 {[%emt 0:00:30]} Nc6 {[%emt 0:00:21]} 3. d4 {[%emt 0:00:31]} cxd4 {[%emt 0:00:18]} 4. Nxd4 {[%emt 0:00:21]} g6 {[%emt 0:00:25]} 5. c4 {[%emt 0:00:42]} Bg7 {[%emt 0:00:53]} 6. Be3 {[%emt 0:00:13]} Nf6 {[%emt 0:00:41]} 7. Nc3 {[%emt 0:00:17]} O-O {[%emt 0:00:35]} 8. Be2 {[%emt 0:01:24]} d6 {[%emt 0:01:21]} 9. f3 {[%emt 0:00:37]} Bd7 {[%emt 0:04:29]} 10. Qd2 {[%emt 0:01:25]} Rc8 {[%emt 0:03:11]} 11. O-O {[%emt 0:05:20]} Nxd4 {[%emt 0:08:34]} 12. Bxd4 {[%emt 0:00:26]} Be6 {[%emt 0:00:54]} 13. Nd5 {[%emt 0:11:11]} Bxd5 {[%emt 0:05:50]} 14. cxd5 {[%emt 0:09:58]} Nd7 {[%emt 0:04:35]} 15. Be3 {[%emt 0:03:22]} Nc5 {[%emt 0:12:32]} 16. Rac1 {[%emt 0:06:11]} Qd7 {[%emt 0:05:37]} 17. Rc2 {[%emt 0:08:37]} Na4 {[%emt 0:13:42]} 18. Rfc1 {[%emt 0:05:07]} Rxc2 {[%emt 0:04:21]} 19. Rxc2 {[%emt 0:04:00]} Rc8 {[%emt 0:02:51]} 20. b3 {[%emt 0:14:39]} Nb6 {[%emt 0:03:47]} 21. Kf2 {[%emt 0:07:19]} f5 {[%emt 0:12:38]} 22. Rxc8+ {[%emt 0:03:46]} Qxc8 {[%emt 0:00:10]} 23. Qc1 {[%emt 0:01:16]} Qxc1 {[%emt 0:02:48]} 24. Bxc1 {[%emt 0:01:24]} Bd4+ {[%emt 0:00:02]} 25. Kg3 {[%emt 0:05:36]} Kg7 {[%emt 0:00:22]} 26. h4 {[%emt 0:02:38]} Nd7 {[%emt 0:02:11]} 27. h5 {[%emt 0:02:32]} Nf6 {[%emt 0:03:02]} 28. hxg6 {[%emt 0:01:56]} hxg6 {[%emt 0:02:00]} 29. Bd3 {[%emt 0:00:48]} Nh5+ {[%emt 0:03:03]} 30. Kh3 {[%emt 0:00:54]} f4 {[%emt 0:01:24]} 31. Kg4 {[%emt 0:00:51]} Be5 {[%emt 0:00:53]} 32. Bd2 {[%emt 0:00:48]} Nf6+ {[%emt 0:01:25]} 33. Kg5 {[%emt 0:00:20]} Nh5 {[%emt 0:00:34]} 34. Kg4 {[%emt 0:00:13]} Kh6 {[%emt 0:00:54]} 35. Bb5 {[%emt 0:00:34]} g5 {[%emt 0:00:19]} 36. Kf5 {[%emt 0:01:02]} Ng7+ {[%emt 0:00:12]} 37. Kg4 {[%emt 0:00:10]} 1/2-1/2

[Event "CZE-ch Youth B14 2022"]
[Site "Luhacovice"]
[Date "2022.03.14"]
[Round "3.7"]
[White "Tesar, Jakub"]
[Black "Zrubek, Dan"]
[Result "0-1"]
[ECO "B76"]
[WhiteElo "1660"]
[BlackElo "1478"]
[Annotator "NA"]
[PlyCount "58"]
[EventDate "2022.03.12"]
[EventType "swiss"]
[EventCountry "CZE"]
[SourceTitle "playchess.com"]
[Source "ChessBase"]
[SourceQuality "1"]
[TimeControl "40/5400+30:1800+30"]

1. e4 {[%emt 0:00:04]} c5 {[%emt 0:00:14]} 2. Nf3 {[%emt 0:00:10]} d6 {[%emt 0:00:23]} 3. d4 {[%emt 0:00:09]} cxd4 {[%emt 0:00:26]} 4. Nxd4 {[%emt 0:00:08]} Nf6 {[%emt 0:00:22]} 5. Nc3 {[%emt 0:00:12]} g6 {[%emt 0:01:09]} 6. Be3 {[%emt 0:00:11]} Bg7 {[%emt 0:01:16]} 7. f3 {[%emt 0:00:20]} O-O {[%emt 0:00:28]} 8. Qd2 {[%emt 0:00:13]} Nc6 {[%emt 0:00:18]} 9. g4 {[%emt 0:00:42]} e6 {[%emt 0:08:49]} 10. h4 {[%emt 0:24:12]} d5 {[%emt 0:09:34]} 11. Nxc6 bxc6 {[%emt 0:00:26]} 12. e5 {[%emt 0:14:52]} Nd7 {[%emt 0:00:35]} 13. f4 {[%emt 0:07:41]} c5 {[%emt 0:13:17]} 14. Nb5 {[%emt 0:13:52]} Ba6 {[%emt 0:03:08]} 15. h5 {[%emt 0:15:31]} Bxb5 {[%emt 0:09:41]} 16. Bxb5 {[%emt 0:00:05]} d4 {[%emt 0:03:01]} 17. Bg1 {[%emt 0:03:23]} g5 {[%emt 0:09:41]} 18. h6 {[%emt 0:09:37]} Bh8 {[%emt 0:02:34]} 19. Rh5 {[%emt 0:05:31]} f6 {[%emt 0:01:56]} 20. Bxd7 {[%emt 0:01:11]} Qxd7 {[%emt 0:00:55]} 21. fxg5 {[%emt 0:01:24]} f5 {[%emt 0:04:48]} 22. gxf5 {[%emt 0:01:16]} Rxf5 {[%emt 0:00:14]} 23. O-O-O {[%emt 0:00:30]} Qf7 {[%emt 0:02:42]} 24. Rh4 {[%emt 0:00:32]} Bxe5 {[%emt 0:01:04]} 25. Qg2 {[%emt 0:00:33]} Rb8 {[%emt 0:01:29]} 26. Bh2 {[%emt 0:00:31]} Rf2 {[%emt 0:01:55]} 27. Qg1 {[%emt 0:00:10]} Bxh2 {[%emt 0:00:37]} 28. Rxh2 {[%emt 0:00:04]} Qf4+ {[%emt 0:00:10]} 29. Rd2 {[%emt 0:00:54]} Qxd2+ {[%emt 0:00:09]} 0-1

[Event "CZE-ch Youth B14 2022"]
[Site "Luhacovice"]
[Date "2022.03.14"]
[Round "3.8"]
[White "Juracak, David"]
[Black "Soucek, Jan"]
[Result "1/2-1/2"]
[ECO "E16"]
[WhiteElo "1717"]
[BlackElo "1849"]
[Annotator "NA"]
[PlyCount "137"]
[EventDate "2022.03.12"]
[EventType "swiss"]
[EventCountry "CZE"]
[SourceTitle "playchess.com"]
[Source "ChessBase"]
[SourceQuality "1"]
[TimeControl "40/5400+30:1800+30"]

1. d4 {[%emt 0:00:02]} Nf6 {[%emt 0:00:45]} 2. c4 {[%emt 0:00:11]} e6 {[%emt 0:00:13]} 3. Nf3 {[%emt 0:00:12]} Bb4+ {[%emt 0:00:40]} 4. Bd2 {[%emt 0:00:07]} Qe7 {[%emt 0:00:55]} 5. a3 {[%emt 0:00:10]} Bxd2+ {[%emt 0:00:12]} 6. Nbxd2 {[%emt 0:00:02]} d6 {[%emt 0:00:37]} 7. e3 {[%emt 0:00:06]} O-O {[%emt 0:01:16]} 8. Bd3 {[%emt 0:00:06]} Nbd7 {[%emt 0:00:42]} 9. O-O {[%emt 0:00:13]} b6 {[%emt 0:00:46]} 10. Rc1 {[%emt 0:01:06]} Bb7 {[%emt 0:00:56]} 11. Qe2 {[%emt 0:03:38]} e5 {[%emt 0:02:26]} 12. Bb1 {[%emt 0:12:40]} exd4 {[%emt 0:29:09]} 13. Nxd4 {[%emt 0:00:11]} g6 {[%emt 0:00:16]} 14. Rfd1 {[%emt 0:08:13]} Rae8 {[%emt 0:05:16]} 15. Nf1 {[%emt 0:05:07]} Nh5 {[%emt 0:13:41]} 16. Ng3 {[%emt 0:09:49]} Qg5 {[%emt 0:07:56]} 17. Qf1 {[%emt 0:10:38]} Nxg3 {[%emt 0:08:45]} 18. hxg3 {[%emt 0:00:55]} Nf6 {[%emt 0:00:54]} 19. Nf3 {[%emt 0:05:52]} Qh5 {[%emt 0:01:07]} 20. Nh2 $1 {[%emt 0:01:27]} Qe5 {[%emt 0:15:33]} 21. Rd2 {[%emt 0:11:34]} a5 {[%emt 0:05:11]} 22. Rcd1 {[%emt 0:02:26]} Nd7 {[%emt 0:01:57]} 23. Bc2 {[%emt 0:02:20]} f5 {[%emt 0:00:43]} 24. Ba4 {[%emt 0:00:19]} Re7 {[%emt 0:00:49]} 25. Bxd7 {[%emt 0:01:40]} Rxd7 {[%emt 0:00:01]} 26. Qd3 {[%emt 0:02:36]} Rfd8 {[%emt 0:02:05]} 27. Nf3 {[%emt 0:00:49]} Qe4 {[%emt 0:00:37]} 28. Qxe4 {[%emt 0:01:41]} Bxe4 {[%emt 0:00:24]} 29. Nd4 {[%emt 0:00:28]} Kf7 {[%emt 0:00:24]} 30. f3 {[%emt 0:01:02]} Bb7 {[%emt 0:00:01]} 31. Nb3 {[%emt 0:00:49]} Ke7 {[%emt 0:00:39]} 32. Kf2 {[%emt 0:01:47]} a4 {[%emt 0:00:46]} 33. Nd4 {[%emt 0:02:29]} d5 {[%emt 0:00:08]} 34. cxd5 {[%emt 0:00:12]} Rxd5 {[%emt 0:00:20]} 35. Ke1 {[%emt 0:00:46]} c5 {[%emt 0:00:47]} 36. Nb5 {[%emt 0:00:48]} Rxd2 {[%emt 0:00:05]} 37. Rxd2 {[%emt 0:00:06]} Rxd2 {[%emt 0:00:01]} 38. Kxd2 {[%emt 0:00:01]} Bc6 {[%emt 0:00:03]} 39. Nc3 {[%emt 0:00:28]} b5 {[%emt 0:00:13]} 40. Ne2 {[%emt 0:01:12]} b4 {[%emt 0:01:25]} 41. axb4 {[%emt 0:31:06]} cxb4 {[%emt 0:30:01]} 42. Nd4 {[%emt 0:00:10]} Kd6 {[%emt 0:01:16]} 43. Kd3 {[%emt 0:13:42]} Bd5 {[%emt 0:00:00]} 44. e4 {[%emt 0:00:00]} fxe4+ {[%emt 0:00:00]} 45. fxe4 {[%emt 0:00:00]} Bg8 {[%emt 0:00:00]} 46. g4 {[%emt 0:00:00]} Kc5 {[%emt 0:00:00]} 47. Nc2 {[%emt 0:00:00]} Bb3 {[%emt 0:00:00]} 48. Ne1 {[%emt 0:00:00]} Be6 {[%emt 0:02:40]} ({And not} 48... a3 49. bxa3 bxa3 50. Kc3 $19) 49. g5 {[%emt 0:00:00]} Bc4+ {[%emt 0:00:48]} 50. Ke3 {[%emt 0:00:00]} a3 {[%emt 0:00:54]} 51. bxa3 {[%emt 0:00:00]} bxa3 {[%emt 0:00:02]} 52. Nc2 {[%emt 0:00:00]} a2 {[%emt 0:00:03]} 53. Kd2 {[%emt 0:00:00]} Bb3 {[%emt 0:01:52]} 54. Na1 {[%emt 0:00:00]} Kd4 $2 {[%emt 0:00:38]} 55. Nxb3+ {[%emt 0:00:00]} Kxe4 {[%emt 0:00:01]} 56. Kc2 {[%emt 0:00:00]} Kf4 {[%emt 0:00:16]} 57. Kb2 {[%emt 0:00:00]} Kxg5 {[%emt 0:00:23]} 58. Nd2 {[%emt 0:00:00]} Kf4 {[%emt 0:01:03]} (58... Kg4 $5 59. Nf1 (59. Kxa2 $2 Kg3 $19 60. Kb3 Kxg2 $19) 59... h5 $11) 59. Nf1 $11 {[%emt 0:00:00]} Ke4 {[%emt 0:00:43]} 60. Kxa2 Kd3 {[%emt 0:00:01]} 61. Kb2 {[%emt 0:01:17]} Ke2 {[%emt 0:00:02]} 62. Nh2 {[%emt 0:01:00]} h5 {[%emt 0:01:09]} 63. Nf3 {[%emt 0:00:14]} Kf2 {[%emt 0:00:37]} 64. Kc2 {[%emt 0:00:05]} g5 {[%emt 0:00:46]} 65. Nxg5 {[%emt 0:00:11]} Kxg2 {[%emt 0:00:05]} 66. Kd2 {[%emt 0:00:06]} Kg3 {[%emt 0:00:50]} 67. Ke2 {[%emt 0:00:10]} h4 {[%emt 0:00:16]} 68. Kf1 {[%emt 0:00:12]} h3 {[%emt 0:00:39]} 69. Nxh3 {[%emt 0:00:13]} 1/2-1/2

[Event "CZE-ch Youth B14 2022"]
[Site "Luhacovice"]
[Date "2022.03.14"]
[Round "3.9"]
[White "Sigut, Ondrej"]
[Black "Veverka, Vladimir"]
[Result "1-0"]
[ECO "C02"]
[WhiteElo "1536"]
[BlackElo "1723"]
[Annotator "NA"]
[PlyCount "113"]
[EventDate "2022.03.12"]
[EventType "swiss"]
[EventCountry "CZE"]
[SourceTitle "playchess.com"]
[Source "ChessBase"]
[SourceQuality "1"]
[TimeControl "40/5400+30:1800+30"]

1. e4 {[%emt 0:00:03]} e6 {[%emt 0:00:12]} 2. d4 {[%emt 0:00:08]} d5 {[%emt 0:00:10]} 3. e5 {[%emt 0:00:06]} c5 {[%emt 0:00:14]} 4. c3 {[%emt 0:00:11]} Qb6 {[%emt 0:00:30]} 5. Nf3 {[%emt 0:00:15]} Bd7 {[%emt 0:00:12]} 6. a3 {[%emt 0:00:55]} a5 {[%emt 0:01:22]} 7. Bd3 {[%emt 0:01:29]} Bb5 {[%emt 0:00:26]} 8. O-O {[%emt 0:02:07]} Bxd3 {[%emt 0:01:24]} 9. Qxd3 {[%emt 0:00:09]} Nc6 {[%emt 0:01:12]} 10. Rd1 {[%emt 0:07:24]} cxd4 {[%emt 0:01:50]} 11. cxd4 {[%emt 0:00:20]} Nge7 {[%emt 0:01:45]} 12. Nc3 {[%emt 0:01:44]} Nf5 {[%emt 0:00:58]} 13. Nxd5 {[%emt 0:08:51]} Qd8 {[%emt 0:02:49]} 14. Ne3 {[%emt 0:02:32]} Nfe7 {[%emt 0:00:55]} 15. d5 {[%emt 0:04:34]} Nxd5 {[%emt 0:01:05]} 16. Nxd5 {[%emt 0:00:23]} exd5 {[%emt 0:00:18]} 17. Qxd5 {[%emt 0:00:07]} Qc7 {[%emt 0:00:42]} 18. Be3 {[%emt 0:05:59]} Be7 {[%emt 0:01:21]} 19. Rac1 {[%emt 0:03:31]} O-O {[%emt 0:00:46]} 20. Qd7 {[%emt 0:01:41]} Qb8 {[%emt 0:01:04]} 21. Qf5 {[%emt 0:02:27]} Rd8 {[%emt 0:00:49]} 22. Bg5 {[%emt 0:02:44]} Rxd1+ {[%emt 0:01:06]} 23. Rxd1 {[%emt 0:00:02]} Qe8 {[%emt 0:01:45]} 24. h3 {[%emt 0:07:53]} h6 {[%emt 0:02:42]} 25. Bxe7 {[%emt 0:02:33]} Qxe7 {[%emt 0:00:38]} 26. Rd7 {[%emt 0:01:32]} Qe8 {[%emt 0:01:03]} 27. Rxb7 {[%emt 0:01:50]} Rb8 {[%emt 0:00:41]} 28. Rxb8 {[%emt 0:01:31]} Qxb8 {[%emt 0:00:09]} 29. e6 {[%emt 0:01:50]} f6 {[%emt 0:01:00]} 30. Qd5 {[%emt 0:01:46]} Qe8 {[%emt 0:01:58]} 31. Nd4 {[%emt 0:08:18]} Nxd4 {[%emt 0:02:04]} 32. Qxd4 {[%emt 0:00:21]} Qxe6 {[%emt 0:00:14]} 33. Qd8+ {[%emt 0:00:22]} Kh7 {[%emt 0:00:16]} 34. Qxa5 {[%emt 0:00:08]} Qb3 {[%emt 0:01:20]} 35. Qc3 {[%emt 0:01:58]} Qd1+ {[%emt 0:03:43]} 36. Kh2 {[%emt 0:00:15]} Qd6+ {[%emt 0:01:21]} 37. g3 {[%emt 0:00:11]} Qb6 {[%emt 0:00:54]} 38. Qc2+ {[%emt 0:00:41]} Kh8 {[%emt 0:00:33]} 39. b4 {[%emt 0:00:27]} Qb5 {[%emt 0:01:44]} 40. Qc5 {[%emt 0:00:39]} Qa4 {[%emt 0:01:27]} 41. b5 {[%emt 0:32:03]} Qa5 {[%emt 0:33:21]} 42. Qb4 {[%emt 0:04:36]} Qb6 {[%emt 0:01:11]} 43. Qb2 {[%emt 0:00:23]} h5 {[%emt 0:03:36]} 44. h4 {[%emt 0:03:08]} Kg8 {[%emt 0:01:41]} 45. a4 {[%emt 0:01:44]} g5 {[%emt 0:01:16]} 46. hxg5 {[%emt 0:02:29]} fxg5 {[%emt 0:00:14]} 47. a5 {[%emt 0:02:52]} Qb7 {[%emt 0:01:18]} 48. Qe5 {[%emt 0:05:28]} h4 {[%emt 0:00:46]} 49. Qxg5+ {[%emt 0:01:32]} Kf8 {[%emt 0:00:41]} 50. Qh6+ {[%emt 0:01:12]} Kg8 {[%emt 0:00:14]} 51. Qg5+ {[%emt 0:00:09]} Kf8 {[%emt 0:00:17]} 52. gxh4 {[%emt 0:01:05]} Qc7+ {[%emt 0:00:32]} 53. Kg2 {[%emt 0:01:58]} Qxa5 {[%emt 0:00:23]} 54. h5 {[%emt 0:01:59]} Qa8+ {[%emt 0:00:29]} 55. f3 {[%emt 0:01:49]} Qa2+ {[%emt 0:00:17]} 56. Kg3 {[%emt 0:00:10]} Qb1 {[%emt 0:01:08]} 57. Qf6+ {[%emt 0:00:31]} 1-0

[Event "CZE-ch Youth B14 2022"]
[Site "Luhacovice"]
[Date "2022.03.14"]
[Round "3.10"]
[White "Mrazek, Adam"]
[Black "Svoboda, Daniel"]
[Result "0-1"]
[ECO "A46"]
[WhiteElo "1582"]
[BlackElo "1619"]
[Annotator "NA"]
[PlyCount "66"]
[EventDate "2022.03.12"]
[EventType "swiss"]
[EventCountry "CZE"]
[SourceTitle "playchess.com"]
[Source "ChessBase"]
[SourceQuality "1"]
[TimeControl "40/5400+30:1800+30"]

1. d4 {[%emt 0:00:05]} Nf6 {[%emt 0:00:11]} 2. Nf3 {[%emt 0:00:07]} c5 {[%emt 0:02:28]} 3. e3 {[%emt 0:02:14]} g6 {[%emt 0:01:10]} 4. c4 {[%emt 0:08:01]} Bg7 {[%emt 0:01:54]} 5. Nc3 {[%emt 0:02:12]} O-O {[%emt 0:04:24]} 6. Be2 {[%emt 0:02:27]} cxd4 {[%emt 0:01:33]} 7. Nxd4 {[%emt 0:10:10]} Nc6 {[%emt 0:09:08]} 8. O-O {[%emt 0:04:00]} a6 {[%emt 0:06:49]} 9. e4 {[%emt 0:12:58]} d6 {[%emt 0:04:41]} 10. Be3 {[%emt 0:02:50]} Bd7 {[%emt 0:06:29]} 11. Qd2 {[%emt 0:06:03]} Ne5 {[%emt 0:07:08]} 12. Bh6 {[%emt 0:09:30]} Rc8 {[%emt 0:02:10]} 13. Bxg7 {[%emt 0:03:26]} Kxg7 {[%emt 0:00:07]} 14. b3 {[%emt 0:00:13]} Qc7 {[%emt 0:07:15]} 15. Rac1 {[%emt 0:07:08]} Bc6 {[%emt 0:04:43]} 16. f3 {[%emt 0:17:59]} Bd7 {[%emt 0:09:03]} 17. Rfd1 {[%emt 0:05:57]} Bc6 {[%emt 0:05:37]} 18. Kh1 {[%emt 0:00:30]} b6 {[%emt 0:03:05]} 19. Bf1 {[%emt 0:01:37]} Rfd8 {[%emt 0:03:47]} 20. Rc2 {[%emt 0:01:32]} Qb7 {[%emt 0:04:24]} 21. Rdc1 {[%emt 0:00:43]} Rc7 {[%emt 0:02:21]} 22. Nd5 {[%emt 0:01:03]} Bxd5 {[%emt 0:02:23]} 23. cxd5 {[%emt 0:00:38]} Rdc8 {[%emt 0:03:30]} 24. Rxc7 {[%emt 0:00:31]} Rxc7 {[%emt 0:00:06]} 25. Rxc7 Qxc7 {[%emt 0:00:06]} 26. Bxa6 {[%emt 0:00:41]} Qa7 {[%emt 0:05:26]} 27. Bb5 {[%emt 0:00:46]} Qa3 {[%emt 0:01:31]} 28. Qc2 {[%emt 0:00:27]} Qb4 {[%emt 0:00:54]} 29. Qd1 {[%emt 0:00:40]} Qc3 {[%emt 0:01:11]} 30. a4 {[%emt 0:00:31]} h5 {[%emt 0:00:52]} 31. Kg1 {[%emt 0:00:24]} Qe3+ {[%emt 0:00:47]} 32. Kf1 {[%emt 0:00:23]} Qc3 {[%emt 0:00:35]} 33. Ke2 {[%emt 0:00:36]} h4 {[%emt 0:00:36]} 0-1

[Event "CZE-ch Youth B14 2022"]
[Site "Luhacovice"]
[Date "2022.03.14"]
[Round "3.11"]
[White "Vysinsky, Otakar"]
[Black "Juhanak, Daniel"]
[Result "1/2-1/2"]
[ECO "B26"]
[WhiteElo "1534"]
[BlackElo "1688"]
[Annotator "NA RC"]
[PlyCount "106"]
[EventDate "2022.03.12"]
[EventType "swiss"]
[EventCountry "CZE"]
[SourceTitle "playchess.com"]
[Source "ChessBase"]
[SourceQuality "1"]
[TimeControl "40/5400+30:1800+30"]

1. e4 {[%emt 0:00:05]} c5 {[%emt 0:00:20]} 2. Nc3 {[%emt 0:00:04]} d6 {[%emt 0:00:34]} 3. g3 {[%emt 0:00:19]} Nc6 {[%emt 0:00:34]} 4. Bg2 {[%emt 0:00:25]} g6 {[%emt 0:00:30]} 5. d3 {[%emt 0:00:32]} Bg7 {[%emt 0:00:38]} 6. Be3 {[%emt 0:01:25]} Rb8 {[%emt 0:00:45]} 7. Qd2 {[%emt 0:04:08]} b5 {[%emt 0:00:44]} 8. f4 {[%emt 0:02:22]} b4 {[%emt 0:06:09]} 9. Nd1 {[%emt 0:01:19]} e6 {[%emt 0:06:38]} 10. Ne2 {[%emt 0:07:45]} Nd4 {[%emt 0:04:46]} 11. c3 {[%emt 0:05:17]} Nxe2 {[%emt 0:02:17]} 12. Qxe2 {[%emt 0:00:03]} bxc3 {[%emt 0:04:23]} 13. bxc3 {[%emt 0:01:23]} Qa5 {[%emt 0:13:45]} 14. Rc1 {[%emt 0:06:13]} Ne7 {[%emt 0:04:19]} 15. O-O {[%emt 0:01:46]} O-O {[%emt 0:04:05]} 16. Qc2 {[%emt 0:14:38]} Ba6 {[%emt 0:02:31]} 17. Bd2 {[%emt 0:03:53]} Rfd8 {[%emt 0:07:35]} 18. Re1 {[%emt 0:03:50]} e5 {[%emt 0:05:34]} 19. c4 {[%emt 0:06:26]} Qa3 {[%emt 0:08:11]} 20. Bc3 {[%emt 0:07:45]} Nc6 {[%emt 0:02:00]} 21. f5 {[%emt 0:06:31]} Nd4 {[%emt 0:04:22]} 22. Bxd4 {[%emt 0:05:10]} cxd4 {[%emt 0:00:33]} 23. Rb1 {[%emt 0:00:19]} Rb4 {[%emt 0:02:21]} 24. Rxb4 {[%emt 0:01:34]} Qxb4 {[%emt 0:00:06]} 25. Re2 {[%emt 0:00:55]} Rb8 {[%emt 0:14:06]} 26. Qb2 {[%emt 0:00:41]} Bc8 {[%emt 0:01:55]} 27. g4 {[%emt 0:01:42]} a5 {[%emt 0:01:09]} 28. Qxb4 {[%emt 0:02:40]} Rxb4 {[%emt 0:02:19]} 29. Rb2 {[%emt 0:00:36]} Bh6 {[%emt 0:00:36]} 30. Kf1 {[%emt 0:03:02]} Bd7 {[%emt 0:00:55]} 31. Ke1 {[%emt 0:06:59]} Bc1 {[%emt 0:00:17]} 32. Rxb4 {[%emt 0:02:50]} axb4 {[%emt 0:00:01]} 33. Nf2 {[%emt 0:00:29]} Ba4 {[%emt 0:00:32]} 34. Bf3 {[%emt 0:00:28]} Bc2 {[%emt 0:01:01]} 35. Bd1 {[%emt 0:00:39]} Bb1 {[%emt 0:00:30]} 36. Bb3 {[%emt 0:00:41]} Be3 {[%emt 0:00:19]} 37. fxg6 {[%emt 0:01:26]} hxg6 {[%emt 0:00:20]} 38. c5 {[%emt 0:00:57]} dxc5 {[%emt 0:00:21]} 39. Bc4 {[%emt 0:00:18]} Bc2 {[%emt 0:01:10]} 40. Nd1 {[%emt 0:00:46]} Bxd1 {[%emt 0:00:28]} 41. Kxd1 {[%emt 0:30:08]} Kg7 {[%emt 0:07:24]} 42. Ke2 {[%emt 0:00:00]} f6 {[%emt 0:07:28]} 43. Kf3 {[%emt 0:00:00]} Bd2 {[%emt 0:01:33]} 44. h3 {[%emt 0:00:00]} Kh6 {[%emt 0:01:02]} 45. Bb3 {[%emt 0:00:00]} Kg5 {[%emt 0:02:45]} 46. Bc4 {[%emt 0:00:00]} f5 {[%emt 0:01:12]} 47. gxf5 {[%emt 0:00:00]} gxf5 {[%emt 0:00:28]} 48. Be6 {[%emt 0:00:00]} fxe4+ {[%emt 0:03:04]} 49. Kxe4 {[%emt 0:00:00]} Kf6 {[%emt 0:01:06]} 50. Bc4 {[%emt 0:00:00]} Bc3 {[%emt 0:01:19]} 51. h4 {[%emt 0:00:00]} Be1 {[%emt 0:02:08]} 52. h5 {[%emt 0:00:00]} Bd2 {[%emt 0:00:28]} 53. Bb3 {[%emt 0:00:00]} Bc3 {[%emt 0:01:30]} 1/2-1/2